fUSD/lending_fUSD_20260607
["ID","MTS","AMOUNT","RATE_DAILY","PERIOD"]
[424394797,1780826543000,-284.16907174,0.00038462,30]
[424394799,1780826543000,-500.0,0.00038462,70]
[424394798,1780826543000,-500.0,0.00038462,70]
[424394801,1780826543000,-500.0,0.00038462,70]
[424394802,1780826543000,-500.0,0.00038462,70]
[424394803,1780826543000,-500.0,0.00038462,70]
[424394804,1780826543000,-500.0,0.00038462,70]
[424394805,1780826543000,-500.0,0.00038462,70]
[424394806,1780826543000,-500.0,0.00038462,70]
[424394807,1780826543000,-500.0,0.00038462,70]
[424394808,1780826543000,-500.0,0.00038462,70]
[424394809,1780826543000,-500.0,0.00038462,70]
[424394800,1780826543000,-500.0,0.00038462,70]
[424394817,1780826544000,-500.0,0.00038462,70]
[424394811,1780826544000,-500.0,0.00038462,70]
[424394812,1780826544000,-500.0,0.00038462,70]
[424394813,1780826544000,-500.0,0.00038462,70]
[424394814,1780826544000,-500.0,0.00038462,70]
[424394815,1780826544000,-500.0,0.00038462,70]
[424394816,1780826544000,-500.0,0.00038462,70]
[424394810,1780826544000,-500.0,0.00038462,70]
[424394818,1780826544000,-500.0,0.00038462,70]
[424394820,1780826544000,-227.01149882,0.00038462,70]
[424394821,1780826544000,-507.49232876,0.00038462,60]
[424394822,1780826544000,-500.0,0.00038462,90]
[424394824,1780826544000,-500.0,0.00038462,90]
[424394823,1780826544000,-500.0,0.00038462,90]
[424394819,1780826544000,-500.0,0.00038462,70]
[424394825,1780826544000,-500.0,0.00038462,90]
[424394826,1780826545000,-438.17469058,0.00038462,90]
[424394827,1780826545000,-502.98305823,0.00038462,45]
[424394828,1780826545000,-500.0,0.00038462,30]
[424394829,1780826545000,-500.0,0.00038462,30]
[424394830,1780826545000,-500.0,0.00038462,30]
[424394831,1780826545000,-500.0,0.00038462,30]
[424394832,1780826545000,-500.0,0.00038462,30]
[424394839,1780826545000,-500.0,0.00038462,60]
[424394835,1780826545000,-197.83670169,0.00038462,30]
[424394834,1780826545000,-500.0,0.00038462,30]
[424394836,1780826545000,-500.0,0.00038462,30]
[424394838,1780826545000,-500.0,0.00038462,30]
[424394837,1780826545000,-500.0,0.00038462,60]
[424394841,1780826545000,-500.0,0.00038462,60]
[424394840,1780826545000,-500.0,0.00038462,30]
[424394833,1780826545000,-500.0,0.00038462,30]
[424394842,1780826546000,-500.0,0.00038462,30]
[424394844,1780826546000,-500.0,0.00038462,60]
[424394846,1780826546000,-500.0,0.00038462,30]
[424394845,1780826546000,-500.0,0.00038462,30]
[424394847,1780826546000,-500.0,0.00038462,60]
[424394848,1780826546000,-500.0,0.00038462,30]
[424394849,1780826546000,-594.54962255,0.00038462,60]
[424394843,1780826546000,-500.0,0.00038462,30]
[424394850,1780826546000,-500.0,0.00038462,30]
[424394852,1780826546000,-500.0,0.00038462,30]
[424394853,1780826546000,-500.0,0.00038462,30]
[424394854,1780826546000,-500.0,0.00038462,30]
[424394856,1780826546000,-500.0,0.00038462,30]
[424394855,1780826546000,-500.0,0.00038462,30]
[424394857,1780826546000,-500.0,0.00038462,30]
[424394851,1780826546000,-500.0,0.00038462,30]
[424394858,1780826546000,-500.0,0.00038462,30]
[424394859,1780826547000,-500.0,0.00038462,30]
[424394861,1780826547000,-454.29819238,0.00038462,30]
[424394863,1780826547000,-500.0,0.00038462,60]
[424394862,1780826547000,-500.0,0.00038462,60]
[424394865,1780826547000,-500.0,0.00038462,60]
[424394864,1780826547000,-500.0,0.00038462,60]
[424394866,1780826547000,-500.0,0.00038462,60]
[424394860,1780826547000,-500.0,0.00038462,30]
[424394869,1780826547000,-500.0,0.00038462,60]
[424394867,1780826547000,-500.0,0.00038462,60]
[424394874,1780826547000,-500.0,0.00038462,60]
[424394873,1780826547000,-500.0,0.00038462,60]
[424394868,1780826547000,-500.0,0.00038462,60]
[424394871,1780826547000,-500.0,0.00038462,60]
[424394872,1780826547000,-500.0,0.00038462,60]
[424394870,1780826547000,-500.0,0.00038462,60]
[424394876,1780826548000,-500.0,0.00038462,60]
[424394875,1780826548000,-500.0,0.00038462,60]
[424394877,1780826548000,-500.0,0.00038462,60]
[424394879,1780826548000,-500.0,0.00038462,60]
[424394878,1780826548000,-500.0,0.00038462,60]
[424394880,1780826548000,-500.0,0.00038462,60]
[424394881,1780826548000,-500.0,0.00038462,60]
[424394884,1780826548000,-225.09213474,0.00038462,30]
[424394885,1780826548000,-500.0,0.00038462,30]
[424394887,1780826548000,-500.0,0.00038462,30]
[424394886,1780826548000,-500.0,0.00038462,30]
[424394889,1780826548000,-500.0,0.00038462,30]
[424394888,1780826548000,-500.0,0.00038462,30]
[424394890,1780826548000,-500.0,0.00038462,30]
[424394883,1780826548000,-500.0,0.00038462,30]
[424394882,1780826548000,-502.9039891,0.00038462,60]
[424394897,1780826549000,-500.0,0.00038462,60]
[424394891,1780826549000,-500.0,0.00038462,30]
[424394892,1780826549000,-500.0,0.00038462,30]
[424394893,1780826549000,-500.0,0.00038462,30]
[424394894,1780826549000,-500.0,0.00038462,30]
[424394895,1780826549000,-469.0212118,0.00038462,30]
[424394896,1780826549000,-500.0,0.00038462,60]
[424394899,1780826549000,-500.0,0.00038462,60]
[424394900,1780826549000,-500.0,0.00038462,60]
[424394907,1780826549000,-500.0,0.00038462,60]
[424394906,1780826549000,-500.0,0.00038462,60]
[424394905,1780826549000,-500.0,0.00038462,60]
[424394898,1780826549000,-500.0,0.00038462,60]
[424394903,1780826549000,-500.0,0.00038462,60]
[424394902,1780826549000,-500.0,0.00038462,60]
[424394901,1780826549000,-500.0,0.00038462,60]
[424394904,1780826549000,-500.0,0.00038462,60]
[424394914,1780826550000,-500.0,0.00038462,60]
[424394909,1780826550000,-500.0,0.00038462,60]
[424394908,1780826550000,-500.0,0.00038462,60]
[424394911,1780826550000,-500.0,0.00038462,60]
[424394910,1780826550000,-500.0,0.00038462,60]
[424394912,1780826550000,-500.0,0.00038462,60]
[424394913,1780826550000,-500.0,0.00038462,60]
[424394915,1780826550000,-500.0,0.00038462,60]
[424394916,1780826550000,-500.0,0.00038462,60]
[424394917,1780826550000,-500.0,0.00038462,60]
[424394918,1780826550000,-500.0,0.00038462,60]
[424394919,1780826550000,-500.0,0.00038462,60]
[424394921,1780826550000,-500.0,0.00038462,60]
[424394920,1780826550000,-500.0,0.00038462,60]
[424394923,1780826550000,-500.0,0.00038462,60]
[424394922,1780826550000,-500.0,0.00038462,60]
[424394924,1780826550000,-500.0,0.00038462,60]
[424394926,1780826551000,-500.0,0.00038462,60]
[424394925,1780826551000,-500.0,0.00038462,60]
[424394928,1780826551000,-500.0,0.00038462,60]
[424394927,1780826551000,-500.0,0.00038462,60]
[424394929,1780826551000,-500.0,0.00038462,60]
[424394930,1780826551000,-500.0,0.00038462,60]
[424394931,1780826551000,-500.0,0.00038462,60]
[424394932,1780826551000,-500.0,0.00038462,60]
[424394933,1780826551000,-500.0,0.00038462,60]
[424394934,1780826551000,-356.3096298,0.00038462,60]
[424394935,1780826551000,-500.0,0.00038462,90]
[424394936,1780826551000,-500.0,0.00038462,90]
[424394938,1780826551000,-500.0,0.00038462,90]
[424394937,1780826551000,-500.0,0.00038462,90]
[424394939,1780826551000,-511.69616366,0.00038462,90]
[424394940,1780826551000,-500.0,0.00038462,90]
[424394941,1780826551000,-500.0,0.00038462,90]
[424394943,1780826552000,-500.0,0.00038462,90]
[424394942,1780826552000,-500.0,0.00038462,90]
[424394945,1780826552000,-500.0,0.00038462,90]
[424394944,1780826552000,-500.0,0.00038462,90]
[424394946,1780826552000,-500.0,0.00038462,90]
[424394947,1780826552000,-525.08225333,0.00038462,90]
[424394948,1780826552000,-318.63875794,0.00038462,30]
[424394949,1780826552000,-309.31585865,0.00038462,30]
[424394951,1780826552000,-509.68924837,0.00038462,30]
[424394950,1780826552000,-530.2915304,0.00038462,30]
[424394953,1780826552000,-176.80481334,0.00038462,30]
[424394952,1780826552000,-176.68326571,0.00038462,90]
[424394954,1780826552000,-549.0,0.00038462,30]
[424394955,1780826552000,-403.99091012,0.00038462,60]
[424394956,1780826552000,-408.57432459,0.00038462,30]
[424394958,1780826552000,-480.47909288,0.00038462,30]
[424394957,1780826552000,-332.63811222,0.00038462,90]
[424394959,1780826553000,-400.18149086,0.00038462,90]
[424394961,1780826553000,-376.98930715,0.00038462,90]
[424394962,1780826553000,-518.69542532,0.00038462,30]
[424394963,1780826553000,-1125.0,0.00038462,30]
[424394965,1780826553000,-500.0,0.00038462,30]
[424394964,1780826553000,-500.0,0.00038462,30]
[424394966,1780826553000,-250.70612237,0.00038462,30]
[424394960,1780826553000,-336.50870295,0.00038462,45]
[424394968,1780826553000,-180.53669762,0.00038462,60]
[424394969,1780826553000,-234.39738659,0.00038462,100]
[424394970,1780826553000,-178.11441043,0.00038462,90]
[424394971,1780826553000,-401.49887125,0.00038462,30]
[424394972,1780826553000,-202.33426879,0.00038462,30]
[424394973,1780826553000,-674.42212438,0.00038462,30]
[424394974,1780826553000,-500.0,0.00038462,30]
[424394967,1780826553000,-179.87010087,0.00038462,30]
[424394976,1780826554000,-410.6454474,0.00038462,30]
[424394975,1780826554000,-500.0,0.00038462,30]
[424394977,1780826554000,-173.59755552,0.00038462,90]
[424394978,1780826554000,-360.96167256,0.00038462,60]
[424394979,1780826554000,-267.99211738,0.00038462,105]
[424394980,1780826554000,-628.23823289,0.00038462,90]
[424394981,1780826554000,-165.80064009,0.00038462,30]
[424394982,1780826554000,-474.18098881,0.00038462,30]
[424394983,1780826554000,-379.06465872,0.00038462,60]
[424394984,1780826554000,-209.61595426,0.00038462,60]
[424394985,1780826554000,-500.0,0.00038462,60]
[424394986,1780826554000,-500.0,0.00038462,60]
[424394987,1780826554000,-506.7479106,0.00038462,60]
[424394989,1780826554000,-500.0,0.00038462,60]
[424394988,1780826554000,-488.142944,0.00038462,70]
[424394990,1780826554000,-212.89483652,0.00038462,60]
[424394991,1780826555000,-1046.59595108,0.00038462,30]
[424394992,1780826555000,-211.0,0.00038462,31]
[424394993,1780826555000,-400.0,0.00038462,30]
[424394994,1780826555000,-400.0,0.00038462,30]
[424394996,1780826555000,-500.0,0.00038462,90]
[424394995,1780826555000,-299.1313572,0.00038462,30]
[424394997,1780826555000,-500.0,0.00038462,90]
[424395006,1780826555000,-585.23613615,0.00038462,30]
[424394998,1780826555000,-500.0,0.00038462,90]
[424395000,1780826555000,-500.0,0.00038462,90]
[424395001,1780826555000,-500.0,0.00038462,90]
[424395002,1780826555000,-500.0,0.00038462,90]
[424395003,1780826555000,-500.0,0.00038462,90]
[424395005,1780826555000,-548.53369215,0.00038462,90]
[424395004,1780826555000,-500.0,0.00038462,90]
[424394999,1780826555000,-500.0,0.00038462,90]
[424395013,1780826556000,-408.0625474,0.00038462,60]
[424395007,1780826556000,-218.16872276,0.00038462,30]
[424395008,1780826556000,-379.09978689,0.00038462,30]
[424395009,1780826556000,-625.57025592,0.00038462,60]
[424395010,1780826556000,-392.61556709,0.00038462,30]
[424395012,1780826556000,-176.79577866,0.00038462,30]
[424395011,1780826556000,-311.38654935,0.00038462,30]
[424395014,1780826556000,-303.23122488,0.00038462,30]
[424395023,1780826556000,-193.36488297,0.00038462,60]
[424395016,1780826556000,-279.56453443,0.00038462,65]
[424395017,1780826556000,-497.47214414,0.00038462,30]
[424395018,1780826556000,-191.49309163,0.00038462,60]
[424395019,1780826556000,-510.18794041,0.00038462,90]
[424395020,1780826556000,-396.39590125,0.00038462,30]
[424395021,1780826556000,-323.23096159,0.00038462,30]
[424395022,1780826556000,-467.67472775,0.00038462,30]
[424395015,1780826556000,-301.20609394,0.00038462,60]
[424395024,1780826557000,-529.61397705,0.00038462,30]
[424395025,1780826557000,-202.80047176,0.00038462,31]
[424395027,1780826557000,-215.92583289,0.00038462,60]
[424395026,1780826557000,-371.88863751,0.00038462,30]
[424395029,1780826557000,-92673.12295135,0.00038462,30]
[424395028,1780826557000,-241.27332576,0.00038462,30]
[424395030,1780826557000,-530.90370335,0.00038462,60]
[424395031,1780826557000,-1411.69181243,0.00038462,30]
[424395033,1780826557000,-249.19292356,0.00038462,30]
[424395034,1780826557000,-334.23483563,0.00038462,30]
[424395035,1780826557000,-951.51401452,0.00038462,30]
[424395037,1780826557000,-2340.2275,0.00038462,90]
[424395036,1780826557000,-2340.2275,0.00038462,90]
[424395038,1780826557000,-2340.2275,0.00038462,90]
[424395039,1780826557000,-2340.2275,0.00038462,90]
[424395032,1780826557000,-170.10429711,0.00038462,90]
[424395040,1780826558000,-2340.2275,0.00038462,90]
[424395041,1780826558000,-2340.2275,0.00038462,90]
[424395042,1780826558000,-2340.2275,0.00038462,90]
[424395043,1780826558000,-2340.2275,0.00038462,90]
[424395044,1780826558000,-2340.2275,0.00038462,90]
[424395046,1780826558000,-2340.2275,0.00038462,90]
[424395047,1780826558000,-2340.2275,0.00038462,90]
[424395045,1780826558000,-2340.2275,0.00038462,90]
[424395049,1780826558000,-2340.2275,0.00038462,90]
[424395051,1780826558000,-2340.2275,0.00038462,90]
[424395050,1780826558000,-2340.2275,0.00038462,90]
[424395052,1780826558000,-2340.2275,0.00038462,90]
[424395053,1780826558000,-2340.2275,0.00038462,90]
[424395054,1780826558000,-2340.2275,0.00038462,90]
[424395055,1780826558000,-2340.22809549,0.00038462,90]
[424395048,1780826558000,-2340.2275,0.00038462,90]
[424395056,1780826559000,-2066.8374983,0.00038462,30]
[424395057,1780826559000,-500.0,0.00038462,120]
[424395059,1780826559000,-500.0,0.00038462,120]
[424395058,1780826559000,-500.0,0.00038462,120]
[424395061,1780826559000,-500.0,0.00038462,120]
[424395060,1780826559000,-500.0,0.00038462,120]
[424395062,1780826559000,-500.0,0.00038462,120]
[424395063,1780826559000,-430.47914352,0.00038462,120]
[424395064,1780826559000,-500.0,0.00038462,120]
[424395065,1780826559000,-406.39,0.00038462,120]
[424395066,1780826559000,-500.0,0.00038462,120]
[424395067,1780826559000,-500.0,0.00038462,120]
[424395068,1780826559000,-500.0,0.00038462,120]
[424395069,1780826559000,-500.0,0.00038462,120]
[424395070,1780826559000,-500.0,0.00038462,120]
[424395071,1780826559000,-500.0,0.00038462,120]
[424395072,1780826560000,-500.0,0.00038462,120]
[424395073,1780826560000,-500.0,0.00038462,120]
[424395074,1780826560000,-500.0,0.00038462,120]
[424395075,1780826560000,-305.06,0.00038462,120]
[424395076,1780826560000,-500.0,0.00038462,120]
[424395077,1780826560000,-742.4,0.00038462,120]
[424395079,1780826560000,-742.4,0.00038462,120]
[424395078,1780826560000,-742.4,0.00038462,120]
[424395080,1780826560000,-742.4,0.00038462,120]
[424395081,1780826560000,-742.4,0.00038462,120]
[424395082,1780826560000,-742.4,0.00038462,120]
[424395084,1780826560000,-742.4,0.00038462,120]
[424395083,1780826560000,-742.4,0.00038462,120]
[424395085,1780826560000,-742.4,0.00038462,120]
[424395087,1780826560000,-742.4,0.00038462,120]
[424395086,1780826560000,-742.4,0.00038462,120]
[424395088,1780826561000,-742.4,0.00038462,120]
[424395090,1780826561000,-742.4,0.00038462,120]
[424395089,1780826561000,-742.4,0.00038462,120]
[424395091,1780826561000,-742.4,0.00038462,120]
[424395092,1780826561000,-742.4,0.00038462,120]
[424395093,1780826561000,-742.4,0.00038462,120]
[424395095,1780826561000,-742.4,0.00038462,120]
[424395094,1780826561000,-742.4,0.00038462,120]
[424395096,1780826561000,-742.4,0.00038462,120]
[424395097,1780826561000,-742.4,0.00038462,120]
[424395098,1780826561000,-742.4,0.00038462,120]
[424395099,1780826561000,-742.4,0.00038462,120]
[424395100,1780826561000,-742.47330126,0.00038462,120]
[424395101,1780826561000,-500.0,0.00038462,105]
[424395102,1780826561000,-500.0,0.00038462,120]
[424395103,1780826561000,-337.62214686,0.00038462,120]
[424395105,1780826562000,-500.0,0.00038462,120]
[424395106,1780826562000,-561.37323249,0.00038462,120]
[424395107,1780826562000,-561.37323249,0.00038462,120]
[424395108,1780826562000,-561.37323249,0.00038462,120]
[424395109,1780826562000,-561.37323248,0.00038462,120]
[424395110,1780826562000,-561.37323248,0.00038462,120]
[424395111,1780826562000,-561.37323248,0.00038462,120]
[424395104,1780826562000,-155.00305413,0.00038462,120]
[424395113,1780826562000,-1525.51,0.00038462,120]
[424395114,1780826562000,-1525.51,0.00038462,120]
[424395115,1780826562000,-1525.51,0.00038462,120]
[424395116,1780826562000,-1525.51,0.00038462,120]
[424395117,1780826562000,-1525.51,0.00038462,120]
[424395118,1780826562000,-1525.51,0.00038462,120]
[424395120,1780826562000,-1525.51,0.00038462,120]
[424395119,1780826562000,-1089.0,0.00038462,30]
[424395112,1780826562000,-1525.51,0.00038462,120]
[424395121,1780826563000,-500.0,0.00038462,120]
[424395122,1780826563000,-4359.0,0.00038462,120]
[424395123,1780826563000,-1525.51,0.00038462,120]
[424395125,1780826563000,-1525.51,0.00038462,120]
[424395124,1780826563000,-1525.51,0.00038462,120]
[424395127,1780826563000,-1525.51,0.00038462,120]
[424395128,1780826563000,-1525.51,0.00038462,120]
[424395126,1780826563000,-1525.51,0.00038462,120]
[424395130,1780826563000,-1525.51,0.00038462,120]
[424395132,1780826563000,-1525.51,0.00038462,120]
[424395131,1780826563000,-1525.51,0.00038462,120]
[424395133,1780826563000,-1525.51,0.00038462,120]
[424395134,1780826563000,-1525.51,0.00038462,120]
[424395135,1780826563000,-1525.51,0.00038462,120]
[424395137,1780826563000,-1525.51,0.00038462,120]
[424395136,1780826563000,-1525.51,0.00038462,120]
[424395129,1780826563000,-1525.51,0.00038462,120]
[424395138,1780826564000,-1525.51,0.00038462,120]
[424395139,1780826564000,-1525.51,0.00038462,120]
[424395140,1780826564000,-1525.51,0.00038462,120]
[424395141,1780826564000,-3026.3094,0.00038462,120]
[424395142,1780826564000,-1525.51,0.00038462,120]
[424395145,1780826564000,-1525.43566852,0.00038462,120]
[424395144,1780826564000,-1525.51,0.00038462,120]
[424395147,1780826564000,-390.83,0.00038462,30]
[424395146,1780826564000,-11734.0,0.00038462,120]
[424395148,1780826564000,-4037.1,0.00038462,120]
[424395143,1780826564000,-1525.51,0.00038462,120]
[424395149,1780826567000,499.979593,0.00038462,30]
[424395150,1780826568000,478.0980773,0.00038462,120]
[424395151,1780826568000,478.0980773,0.00038462,120]
[424395154,1780826568000,478.0980773,0.00038462,120]
[424395153,1780826568000,478.0980773,0.00038462,120]
[424395155,1780826568000,478.0980773,0.00038462,120]
[424395152,1780826568000,478.0980773,0.00038462,120]
[424395157,1780826569000,478.0980773,0.00038462,120]
[424395156,1780826569000,478.0980773,0.00038462,120]
[424395158,1780826600000,-448.48793572,0.00024908,30]
[424395159,1780826600000,-520.95,0.00025234,30]
[424395160,1780826600000,-520.95,0.00026099,30]
[424395161,1780826600000,-308.5,0.00026111,30]
[424395162,1780826600000,-520.95,0.00026964,30]
[424395164,1780826600000,-520.95,0.0002783,30]
[424395165,1780826600000,-308.5,0.0002829,30]
[424395166,1780826600000,-966.556,0.00028323,90]
[424395167,1780826600000,-500.0,0.00028767,30]
[424395168,1780826600000,-517.37091547,0.00028767,30]
[424395163,1780826600000,-255.37,0.00027671,30]
[424395174,1780826601000,-347.3,0.00029385,30]
[424395169,1780826601000,-244.0,0.00029231,30]
[424395170,1780826601000,-253.35,0.00029332,30]
[424395171,1780826601000,-347.3,0.00029385,30]
[424395172,1780826601000,-347.3,0.00029385,30]
[424395173,1780826601000,-347.3,0.00029385,30]
[424395175,1780826601000,-347.3,0.00029385,30]
[424395181,1780826601000,-653.14,0.00029593,30]
[424395177,1780826601000,-278.71,0.00029415,30]
[424395178,1780826601000,-413.72,0.00029417,30]
[424395179,1780826601000,-606.61,0.00029499,30]
[424395180,1780826601000,-263.47,0.00029509,30]
[424395183,1780826601000,-278.71,0.00029655,30]
[424395182,1780826601000,-253.35,0.000296,30]
[424395176,1780826601000,-347.3,0.00029385,30]
[424395189,1780826602000,-150.0,0.00029863,60]
[424395184,1780826602000,-150.0,0.00029863,60]
[424395186,1780826602000,-150.0,0.00029863,60]
[424395187,1780826602000,-150.0,0.00029863,60]
[424395188,1780826602000,-150.0,0.00029863,60]
[424395185,1780826602000,-150.0,0.00029863,60]
[424395191,1780826602000,-150.0,0.00029863,60]
[424395193,1780826602000,-150.0,0.00029863,60]
[424395192,1780826602000,-150.0,0.00029863,60]
[424395194,1780826602000,-150.0,0.00029863,60]
[424395196,1780826602000,-150.0,0.00029863,60]
[424395195,1780826602000,-150.0,0.00029863,60]
[424395190,1780826602000,-150.0,0.00029863,60]
[424395198,1780826603000,-150.0,0.00029863,60]
[424395199,1780826603000,-150.0,0.00029863,60]
[424395200,1780826603000,-150.0,0.00029863,60]
[424395202,1780826603000,-150.0,0.00029863,60]
[424395201,1780826603000,-150.0,0.00029863,60]
[424395203,1780826603000,-150.0,0.00029863,60]
[424395197,1780826603000,-150.0,0.00029863,60]
[424395205,1780826603000,-150.0,0.00029863,60]
[424395206,1780826603000,-150.0,0.00029863,60]
[424395208,1780826603000,-150.0,0.00029863,60]
[424395207,1780826603000,-150.0,0.00029863,60]
[424395209,1780826603000,-150.0,0.00029863,60]
[424395210,1780826603000,-150.0,0.00029863,60]
[424395211,1780826603000,-150.0,0.00029863,60]
[424395204,1780826603000,-150.0,0.00029863,60]
[424395212,1780826604000,-150.0,0.00029863,60]
[424395213,1780826604000,-150.0,0.00029863,60]
[424395214,1780826604000,-150.0,0.00029863,60]
[424395215,1780826604000,-150.0,0.00029863,60]
[424395216,1780826604000,-150.0,0.00029863,60]
[424395217,1780826604000,-150.0,0.00029863,60]
[424395219,1780826604000,-266.9958703,0.00029863,60]
[424395220,1780826604000,-500.0,0.00029863,60]
[424395221,1780826604000,-500.0,0.00029863,60]
[424395222,1780826604000,-500.0,0.00029863,60]
[424395223,1780826604000,-500.0,0.00029863,60]
[424395224,1780826604000,-500.0,0.00029863,60]
[424395218,1780826604000,-150.0,0.00029863,60]
[424395230,1780826605000,-500.0,0.00029863,60]
[424395226,1780826605000,-500.0,0.00029863,60]
[424395225,1780826605000,-500.0,0.00029863,60]
[424395227,1780826605000,-500.0,0.00029863,60]
[424395228,1780826605000,-500.0,0.00029863,60]
[424395229,1780826605000,-500.0,0.00029863,60]
[424395232,1780826605000,-506.0,0.00029863,60]
[424395238,1780826605000,-500.0,0.00029863,60]
[424395233,1780826605000,-500.0,0.00029863,60]
[424395234,1780826605000,-500.0,0.00029863,60]
[424395235,1780826605000,-500.0,0.00029863,60]
[424395236,1780826605000,-639.73651485,0.00029863,60]
[424395237,1780826605000,-500.0,0.00029863,60]
[424395239,1780826605000,-500.0,0.00029863,60]
[424395231,1780826605000,-500.0,0.00029863,60]
[424395240,1780826606000,-500.0,0.00029863,60]
[424395241,1780826606000,-500.0,0.00029863,60]
[424395242,1780826606000,-500.0,0.00029863,60]
[424395243,1780826606000,-500.0,0.00029863,60]
[424395244,1780826606000,-500.0,0.00029863,60]
[424395246,1780826606000,-500.0,0.00029863,60]
[424395245,1780826606000,-500.0,0.00029863,60]
[424395247,1780826606000,-500.0,0.00029863,60]
[424395249,1780826606000,-500.0,0.00029863,60]
[424395251,1780826606000,-500.0,0.00029863,60]
[424395250,1780826606000,-500.0,0.00029863,60]
[424395252,1780826606000,-500.0,0.00029863,60]
[424395254,1780826606000,-512.26529036,0.00029863,60]
[424395253,1780826606000,-500.0,0.00029863,60]
[424395255,1780826606000,-500.0,0.00029863,60]
[424395248,1780826606000,-500.0,0.00029863,60]
[424395256,1780826607000,-500.0,0.00029863,60]
[424395257,1780826607000,-500.0,0.00029863,60]
[424395258,1780826607000,-500.0,0.00029863,60]
[424395259,1780826607000,-500.0,0.00029863,60]
[424395261,1780826607000,-500.0,0.00029863,60]
[424395262,1780826607000,-500.0,0.00029863,60]
[424395260,1780826607000,-500.0,0.00029863,60]
[424395264,1780826607000,-500.0,0.00029863,60]
[424395265,1780826607000,-500.0,0.00029863,60]
[424395266,1780826607000,-500.0,0.00029863,60]
[424395267,1780826607000,-500.0,0.00029863,60]
[424395268,1780826607000,-500.0,0.00029863,60]
[424395269,1780826607000,-503.41003638,0.00029863,60]
[424395270,1780826607000,-500.0,0.00029863,60]
[424395263,1780826607000,-500.0,0.00029863,60]
[424395271,1780826608000,-500.0,0.00029863,60]
[424395272,1780826608000,-500.0,0.00029863,60]
[424395273,1780826608000,-500.0,0.00029863,60]
[424395274,1780826608000,-500.0,0.00029863,60]
[424395275,1780826608000,-500.0,0.00029863,60]
[424395276,1780826608000,-500.0,0.00029863,60]
[424395277,1780826608000,-500.0,0.00029863,60]
[424395278,1780826608000,-500.0,0.00029863,60]
[424395279,1780826608000,-633.28363338,0.00029863,60]
[424395280,1780826608000,-253.35,0.00029868,30]
[424395281,1780826608000,-278.71,0.00029896,30]
[424395282,1780826608000,-369.06159476,0.0003,30]
[424395283,1780826608000,-1111.54,0.0003,30]
[424395284,1780826608000,-1180.48,0.00030136,30]
[424395285,1780826608000,-958.23,0.00030136,30]
[424395286,1780826609000,-783.78,0.00030136,30]
[424395287,1780826609000,-253.42,0.00030136,30]
[424395288,1780826609000,-278.76,0.00030136,30]
[424395289,1780826609000,-178.64,0.00030137,31]
[424395290,1780826609000,-1056.10311775,0.00030137,120]
[424395291,1780826609000,-638199.99069809,0.00030137,120]
[424395292,1780826609000,-214.93755166,0.00030137,120]
[424395300,1780826609000,-205.67,0.00030294,30]
[424395294,1780826609000,-209.33382337,0.000302,120]
[424395295,1780826609000,-1111.54,0.000302,30]
[424395296,1780826609000,-244.0,0.00030231,30]